[Event "SVK Extraliga 2019-20"]
[Site "Slovakia"]
[Date "2020.02.29"]
[Round "7.8"]
[White "Striskova, Lucia"]
[Black "Kopera, Michal"]
[Result "1/2-1/2"]
[ECO "C45"]
[WhiteElo "1649"]
[BlackElo "2159"]
[Annotator "ChessBase"]
[PlyCount "72"]
[EventDate "2019.10.19"]
[EventType "team-tourn"]
[EventCountry "SVK"]
[SourceTitle "playchess.com"]
[Source "ChessBase"]
[SourceQuality "1"]
[WhiteTeam "Bratislava"]
[BlackTeam "Zilina"]
[TimeControl "40/5400+30:1800+30"]

1. e4 {[%emt 0:00:00]} e5 {[%emt 0:00:00]} 2. Nf3 {[%emt 0:00:00]} Nc6 {[%emt 0:00:00]} 3. d4 {[%emt 0:00:30]} exd4 {[%emt 0:00:09]} 4. Nxd4 {[%emt 0:00:07]} Nf6 {[%emt 0:00:49]} 5. Nxc6 {[%emt 0:01:44]} bxc6 {[%emt 0:00:11]} 6. e5 {[%emt 0:00:09]} Qe7 {[%emt 0:01:19]} 7. Qe2 {[%emt 0:00:22]} Nd5 {[%emt 0:00:22]} 8. c4 {[%emt 0:00:23]} Ba6 {[%emt 0:02:45]} 9. b3 {[%emt 0:01:06]} g6 {[%emt 0:03:40]} 10. Ba3 {[%emt 0:02:09]} Qg5 {[%emt 0:17:28]} 11. Bxf8 {[%emt 0:10:05]} Kxf8 {[%emt 0:02:24]} 12. Qb2 {[%emt 0:02:39]} Ne7 {[%emt 0:13:21]} 13. e6 {[%emt 0:02:36]} f6 {[%emt 0:03:15]} 14. exd7 {[%emt 0:01:02]} Kf7 {[%emt 0:10:07]} 15. Nd2 {[%emt 0:04:29]} Qg4 {[%emt 0:08:48]} 16. f3 {[%emt 0:16:29]} Qxd7 {[%emt 0:01:44]} 17. Ne4 {[%emt 0:02:32]} Qe6 {[%emt 0:01:13]} 18. O-O-O {[%emt 0:01:59]} Rad8 {[%emt 0:00:55]} 19. Bd3 {[%emt 0:00:52]} Qe5 {[%emt 0:07:20]} 20. Qxe5 {[%emt 0:05:42]} fxe5 {[%emt 0:00:03]} 21. Rd2 {[%emt 0:01:55]} Nf5 {[%emt 0:04:18]} 22. Nc5 {[%emt 0:02:44]} Bc8 {[%emt 0:00:28]} 23. Bxf5 {[%emt 0:00:14]} gxf5 {[%emt 0:00:48]} 24. Rhd1 {[%emt 0:04:11]} Rxd2 {[%emt 0:02:17]} 25. Rxd2 {[%emt 0:00:08]} Rg8 {[%emt 0:01:26]} 26. Kb2 {[%emt 0:04:03]} Ke7 {[%emt 0:00:36]} 27. Kc3 {[%emt 0:01:07]} h5 {[%emt 0:01:37]} 28. Nd3 {[%emt 0:02:43]} Kf6 {[%emt 0:02:34]} 29. Re2 {[%emt 0:01:23]} Re8 {[%emt 0:00:47]} 30. h4 {[%emt 0:02:46]} Re6 {[%emt 0:02:36]} 31. Nc5 {[%emt 0:00:43]} Re7 {[%emt 0:02:12]} 32. Kb4 {[%emt 0:01:36]} Rg7 {[%emt 0:03:16]} 33. Nd3 {[%emt 0:01:54]} Re7 {[%emt 0:01:28]} 34. Nc5 {[%emt 0:02:07]} Rg7 {[%emt 0:00:16]} 35. Nd3 {[%emt 0:00:33]} Re7 {[%emt 0:00:16]} 36. Nc5 {[%emt 0:02:04]} Rg7 1/2-1/2

[Event "SVK Extraliga 2019-20"]
[Site "Slovakia"]
[Date "2020.03.01"]
[Round "8.5"]
[White "Vojtek, Vladimir"]
[Black "Holtman, Teodor"]
[Result "1-0"]
[ECO "C10"]
[WhiteElo "2252"]
[BlackElo "2252"]
[Annotator "ChessBase"]
[PlyCount "156"]
[EventDate "2019.10.19"]
[EventType "team-tourn"]
[EventCountry "SVK"]
[SourceTitle "playchess.com"]
[Source "ChessBase"]
[SourceQuality "1"]
[WhiteTeam "Dubnica"]
[BlackTeam "Snina"]
[TimeControl "40/5400+30:1800+30"]

1. e4 {[%emt 0:01:08]} e6 {[%emt 0:00:00]} 2. d4 {[%emt 0:00:27]} d5 {[%emt 0:00:03]} 3. Nc3 {[%emt 0:00:06]} Nc6 {[%emt 0:01:31]} 4. Nf3 {[%emt 0:02:25]} Nf6 {[%emt 0:00:06]} 5. e5 {[%emt 0:00:18]} Ne4 {[%emt 0:00:05]} 6. Ne2 {[%emt 0:01:12]} f6 {[%emt 0:00:51]} 7. Nf4 {[%emt 0:01:09]} Be7 {[%emt 0:09:20]} 8. Bb5 {[%emt 0:09:51]} O-O {[%emt 0:02:57]} 9. O-O {[%emt 0:02:52]} fxe5 {[%emt 0:20:29]} 10. dxe5 {[%emt 0:05:05]} Ng5 {[%emt 0:00:46]} 11. Bxc6 {[%emt 0:08:43]} Nxf3+ {[%emt 0:00:05]} 12. Qxf3 {[%emt 0:00:05]} bxc6 {[%emt 0:00:06]} 13. Qg4 {[%emt 0:02:59]} Rf5 {[%emt 0:04:05]} 14. Nh5 {[%emt 0:08:49]} Qf8 {[%emt 0:02:14]} 15. Ng3 {[%emt 0:11:06]} Rf7 {[%emt 0:00:49]} 16. Be3 {[%emt 0:02:13]} c5 {[%emt 0:02:13]} 17. c3 {[%emt 0:00:34]} Bd7 {[%emt 0:04:23]} 18. Rad1 {[%emt 0:00:52]} Qc8 {[%emt 0:04:20]} 19. Rd2 {[%emt 0:08:01]} a5 {[%emt 0:01:01]} 20. h4 {[%emt 0:01:08]} Kh8 {[%emt 0:04:36]} 21. Bg5 {[%emt 0:02:25]} a4 {[%emt 0:02:21]} 22. Bxe7 {[%emt 0:01:56]} Rxe7 {[%emt 0:00:01]} 23. a3 {[%emt 0:00:12]} Rb8 {[%emt 0:05:15]} 24. Nh5 {[%emt 0:07:32]} Qf8 {[%emt 0:04:26]} 25. Nf4 {[%emt 0:01:47]} Rf7 {[%emt 0:01:59]} 26. g3 {[%emt 0:00:16]} Qe7 {[%emt 0:02:04]} 27. Kg2 {[%emt 0:07:19]} Rf5 {[%emt 0:02:24]} 28. Re1 {[%emt 0:00:55]} Rbf8 {[%emt 0:00:32]} 29. Nh3 {[%emt 0:02:40]} Be8 {[%emt 0:00:34]} 30. Qd1 {[%emt 0:01:35]} Bc6 {[%emt 0:04:43]} 31. f4 {[%emt 0:01:31]} Qd7 {[%emt 0:02:00]} 32. Kh2 {[%emt 0:00:50]} Rd8 {[%emt 0:01:22]} 33. Qe2 {[%emt 0:04:03]} Bb5 {[%emt 0:09:05]} 34. Qf2 {[%emt 0:00:33]} Qe7 {[%emt 0:01:12]} 35. Ng5 {[%emt 0:00:33]} Rff8 {[%emt 0:00:37]} 36. Red1 {[%emt 0:00:30]} Bc4 {[%emt 0:01:31]} 37. Qf3 {[%emt 0:02:42]} h6 {[%emt 0:02:28]} 38. Nh3 {[%emt 0:00:39]} Bb3 {[%emt 0:00:01]} 39. Re1 {[%emt 0:01:01]} d4 {[%emt 0:01:41]} 40. Ree2 {[%emt 0:01:23]} Bc4 {[%emt 0:01:39]} 41. Rf2 {[%emt 0:01:32]} Bb5 {[%emt 0:06:33]} 42. Qd1 {[%emt 0:15:44]} Qd7 {[%emt 0:02:15]} 43. f5 {[%emt 0:07:02]} exf5 {[%emt 0:07:10]} 44. Nf4 {[%emt 0:00:12]} Kg8 {[%emt 0:03:55]} 45. e6 {[%emt 0:01:02]} Qd6 {[%emt 0:01:14]} 46. cxd4 {[%emt 0:01:30]} cxd4 {[%emt 0:00:20]} 47. e7 {[%emt 0:00:42]} Qxe7 {[%emt 0:00:07]} 48. Ng6 {[%emt 0:00:07]} Qc5 {[%emt 0:05:49]} 49. Nxf8 {[%emt 0:00:49]} Kxf8 {[%emt 0:00:02]} 50. Qc2 {[%emt 0:01:44]} Qxc2 {[%emt 0:01:48]} 51. Rxc2 {[%emt 0:00:00]} Bd3 {[%emt 0:02:57]} 52. Rxc7 {[%emt 0:00:25]} Be4 {[%emt 0:00:51]} 53. Rd2 {[%emt 0:02:08]} d3 {[%emt 0:02:13]} 54. Kg1 {[%emt 0:00:38]} g5 {[%emt 0:01:08]} 55. Kf2 {[%emt 0:00:49]} Rd6 {[%emt 0:02:12]} 56. Ke3 {[%emt 0:00:53]} gxh4 {[%emt 0:00:02]} 57. gxh4 {[%emt 0:00:03]} Rg6 {[%emt 0:00:07]} 58. Rc4 {[%emt 0:02:12]} Rg3+ {[%emt 0:00:25]} 59. Kf4 {[%emt 0:00:38]} Rg4+ {[%emt 0:00:28]} 60. Ke5 {[%emt 0:00:05]} Rg1 {[%emt 0:01:47]} 61. Rxa4 {[%emt 0:00:32]} Re1 {[%emt 0:00:03]} 62. Kf6 {[%emt 0:00:42]} Re2 {[%emt 0:00:46]} 63. Rb4 {[%emt 0:00:57]} Ke8 {[%emt 0:00:18]} 64. Rd1 {[%emt 0:00:21]} f4 {[%emt 0:01:02]} 65. Rxe4+ {[%emt 0:00:58]} Rxe4 {[%emt 0:00:02]} 66. Rxd3 {[%emt 0:00:07]} f3 {[%emt 0:01:11]} 67. Rxf3 {[%emt 0:00:12]} Rxh4 {[%emt 0:00:02]} 68. Ke6 {[%emt 0:00:47]} Ra4 {[%emt 0:01:48]} 69. Kd6 {[%emt 0:00:20]} Ra6+ {[%emt 0:00:26]} 70. Kc7 {[%emt 0:00:39]} h5 {[%emt 0:00:27]} 71. b4 {[%emt 0:00:04]} Ra7+ {[%emt 0:00:50]} 72. Kc8 {[%emt 0:00:26]} Ke7 {[%emt 0:00:30]} 73. b5 {[%emt 0:00:21]} Kd6 {[%emt 0:00:42]} 74. Kb8 {[%emt 0:01:56]} Rh7 {[%emt 0:00:13]} 75. b6 {[%emt 0:00:14]} h4 {[%emt 0:00:42]} 76. b7 {[%emt 0:00:24]} Rh5 {[%emt 0:00:20]} 77. Ka7 {[%emt 0:00:41]} Rh7 {[%emt 0:00:29]} 78. Ka8 {[%emt 0:00:17]} Kd5 1-0

[Event "SVK Extraliga 2019-20"]
[Site "Slovakia"]
[Date "2020.03.01"]
[Round "8.5"]
[White "Federic, Jozef"]
[Black "Dovzik, Juri"]
[Result "1/2-1/2"]
[ECO "B47"]
[WhiteElo "2221"]
[BlackElo "2274"]
[Annotator "ChessBase"]
[PlyCount "88"]
[EventDate "2019.10.19"]
[EventType "team-tourn"]
[EventCountry "SVK"]
[SourceTitle "playchess.com"]
[Source "ChessBase"]
[SourceQuality "1"]
[WhiteTeam "Modra"]
[BlackTeam "Kosice"]
[TimeControl "40/5400+30:1800+30"]

1. e4 {[%emt 0:00:00]} c5 {[%emt 0:00:12]} 2. Nf3 {[%emt 0:00:03]} e6 {[%emt 0:01:42]} 3. d4 {[%emt 0:00:16]} cxd4 {[%emt 0:00:17]} 4. Nxd4 {[%emt 0:00:06]} Nc6 {[%emt 0:00:52]} 5. Nc3 {[%emt 0:00:11]} Qc7 {[%emt 0:05:21]} 6. f4 {[%emt 0:00:21]} d6 {[%emt 0:01:49]} 7. Nxc6 {[%emt 0:15:45]} bxc6 {[%emt 0:00:14]} 8. Be2 {[%emt 0:00:17]} Nf6 {[%emt 0:01:27]} 9. O-O {[%emt 0:01:54]} d5 {[%emt 0:10:00]} 10. exd5 {[%emt 0:10:32]} cxd5 {[%emt 0:00:02]} 11. Kh1 {[%emt 0:00:31]} Be7 {[%emt 0:04:39]} 12. Be3 {[%emt 0:10:19]} O-O {[%emt 0:00:55]} 13. Bd4 {[%emt 0:01:14]} Ne4 {[%emt 0:05:12]} 14. Bd3 {[%emt 0:06:42]} f5 {[%emt 0:00:38]} 15. Qe1 {[%emt 0:04:25]} Bf6 {[%emt 0:00:58]} 16. Nb5 {[%emt 0:03:17]} Qb8 {[%emt 0:07:47]} 17. Qe3 {[%emt 0:05:58]} a6 {[%emt 0:12:11]} 18. Bxe4 {[%emt 0:03:32]} fxe4 {[%emt 0:02:47]} 19. Bxf6 {[%emt 0:00:26]} Rxf6 {[%emt 0:01:16]} 20. Nd4 {[%emt 0:00:15]} Bd7 {[%emt 0:02:06]} 21. b3 {[%emt 0:07:03]} Qd6 {[%emt 0:00:14]} 22. Kg1 {[%emt 0:02:42]} Raf8 {[%emt 0:03:16]} 23. g3 {[%emt 0:00:52]} e5 {[%emt 0:08:19]} 24. fxe5 {[%emt 0:00:32]} Qxe5 {[%emt 0:00:08]} 25. h4 {[%emt 0:13:04]} Bg4 {[%emt 0:06:43]} 26. Rxf6 {[%emt 0:01:41]} Qxf6 {[%emt 0:00:11]} 27. c3 {[%emt 0:00:51]} h6 {[%emt 0:00:21]} 28. Kg2 {[%emt 0:03:53]} Bf3+ {[%emt 0:00:48]} 29. Kh3 {[%emt 0:04:37]} g5 {[%emt 0:09:33]} 30. Rg1 {[%emt 0:00:18]} Rf7 {[%emt 0:01:32]} 31. a4 {[%emt 0:01:36]} Rg7 {[%emt 0:02:46]} 32. b4 {[%emt 0:00:44]} Qg6 {[%emt 0:06:13]} 33. Kh2 {[%emt 0:00:36]} gxh4 {[%emt 0:02:56]} 34. gxh4 {[%emt 0:00:01]} Bg4 {[%emt 0:00:30]} 35. Qg3 {[%emt 0:00:54]} h5 {[%emt 0:01:09]} 36. Qe5 {[%emt 0:00:22]} Qf7 {[%emt 0:00:18]} 37. Rg2 {[%emt 0:00:45]} Rg6 {[%emt 0:00:16]} 38. Kg1 {[%emt 0:00:48]} Rf6 {[%emt 0:00:20]} 39. Kh2 {[%emt 0:00:52]} Rf2 {[%emt 0:00:49]} 40. a5 {[%emt 0:00:45]} Kh7 {[%emt 0:01:37]} 41. Kg3 {[%emt 0:11:26]} Rf1 {[%emt 0:03:48]} 42. Kh2 {[%emt 0:01:34]} Rf2 {[%emt 0:05:57]} 43. Kg1 {[%emt 0:01:47]} Rf4 {[%emt 0:02:22]} 44. Kh2 {[%emt 0:03:56]} Rf2 {[%emt 0:11:46]} 1/2-1/2

[Event "SVK Extraliga 2019-20"]
[Site "Slovakia"]
[Date "2020.03.01"]
[Round "8.5"]
[White "Bochnickova, Andrea"]
[Black "Pniaczek, Marek"]
[Result "1-0"]
[ECO "B47"]
[WhiteElo "2122"]
[BlackElo "2114"]
[Annotator "ChessBase"]
[PlyCount "92"]
[EventDate "2019.10.19"]
[EventType "team-tourn"]
[EventCountry "SVK"]
[SourceTitle "playchess.com"]
[Source "ChessBase"]
[SourceQuality "1"]
[WhiteTeam "Bratislava"]
[BlackTeam "Dunajov"]
[TimeControl "40/5400+30:1800+30"]

1. e4 {[%emt 0:00:00]} c5 {[%emt 0:00:00]} 2. Nf3 {[%emt 0:00:00]} e6 {[%emt 0:00:00]} 3. d4 {[%emt 0:00:00]} cxd4 {[%emt 0:00:00]} 4. Nxd4 {[%emt 0:00:00]} Nc6 {[%emt 0:00:00]} 5. Nc3 {[%emt 0:00:07]} Qc7 {[%emt 0:00:00]} 6. g3 {[%emt 0:00:33]} a6 {[%emt 0:00:19]} 7. Bg2 {[%emt 0:00:14]} Nf6 {[%emt 0:00:40]} 8. O-O {[%emt 0:00:23]} h5 {[%emt 0:00:40]} 9. h4 {[%emt 0:09:55]} Nxd4 {[%emt 0:04:37]} 10. Qxd4 {[%emt 0:00:08]} Bc5 {[%emt 0:00:08]} 11. Qd3 {[%emt 0:01:56]} Ng4 {[%emt 0:10:15]} 12. Na4 {[%emt 0:10:55]} Ba7 {[%emt 0:06:33]} 13. c4 {[%emt 0:23:11]} b5 {[%emt 0:16:37]} 14. cxb5 {[%emt 0:01:59]} axb5 {[%emt 0:00:03]} 15. Qc3 {[%emt 0:05:36]} Qxc3 {[%emt 0:13:42]} 16. Nxc3 {[%emt 0:04:16]} Ba6 {[%emt 0:03:55]} 17. Nd1 {[%emt 0:16:57]} b4 {[%emt 0:01:50]} 18. Re1 {[%emt 0:00:37]} Ne5 {[%emt 0:10:24]} 19. Be3 {[%emt 0:02:34]} Nd3 {[%emt 0:01:57]} 20. Re2 {[%emt 0:05:59]} Nf4 {[%emt 0:04:05]} 21. Rd2 {[%emt 0:00:36]} Nxg2 {[%emt 0:00:42]} 22. Kxg2 {[%emt 0:00:05]} Bb7 {[%emt 0:03:19]} 23. f3 {[%emt 0:04:22]} Ke7 {[%emt 0:06:10]} 24. Bxa7 {[%emt 0:03:13]} Rxa7 {[%emt 0:00:04]} 25. Rd4 {[%emt 0:00:41]} b3 {[%emt 0:04:26]} 26. a3 {[%emt 0:00:15]} d5 {[%emt 0:01:17]} 27. Rc1 {[%emt 0:01:43]} Ba8 {[%emt 0:01:37]} 28. exd5 {[%emt 0:02:08]} Bxd5 {[%emt 0:00:04]} 29. Ne3 {[%emt 0:00:42]} Rd8 {[%emt 0:00:58]} 30. Nxd5+ {[%emt 0:02:11]} Rxd5 {[%emt 0:00:05]} 31. Rxd5 {[%emt 0:00:19]} exd5 {[%emt 0:00:04]} 32. Kf2 {[%emt 0:00:44]} Kd6 {[%emt 0:01:34]} 33. Rc3 {[%emt 0:00:24]} Rb7 {[%emt 0:01:27]} 34. Ke3 {[%emt 0:00:29]} Re7+ {[%emt 0:03:48]} 35. Kd4 {[%emt 0:00:59]} Re2 {[%emt 0:00:36]} 36. Rxb3 {[%emt 0:00:05]} Rd2+ {[%emt 0:00:11]} 37. Ke3 {[%emt 0:00:56]} Rg2 {[%emt 0:00:12]} 38. a4 {[%emt 0:01:11]} Rxg3 {[%emt 0:01:02]} 39. a5 {[%emt 0:00:05]} Rg1 {[%emt 0:00:27]} 40. a6 {[%emt 0:02:12]} Re1+ {[%emt 0:02:05]} 41. Kd4 {[%emt 0:01:28]} Rd1+ {[%emt 0:01:10]} 42. Rd3 {[%emt 0:05:48]} Ra1 {[%emt 0:02:21]} 43. Ra3 {[%emt 0:00:41]} Rxa3 {[%emt 0:00:07]} 44. bxa3 {[%emt 0:00:05]} Kc6 {[%emt 0:00:28]} 45. f4 {[%emt 0:01:03]} f6 {[%emt 0:00:27]} 46. f5 {[%emt 0:00:11]} Kd6 {Ke4} 1-0

[Event "SVK Extraliga 2019-20"]
[Site "Slovakia"]
[Date "2020.03.01"]
[Round "8.6"]
[White "Krak, Tomas"]
[Black "Veres, Andrej"]
[Result "0-1"]
[ECO "A05"]
[WhiteElo "2331"]
[BlackElo "2234"]
[Annotator "ChessBase"]
[PlyCount "59"]
[EventDate "2019.10.19"]
[EventType "team-tourn"]
[EventCountry "SVK"]
[SourceTitle "playchess.com"]
[Source "ChessBase"]
[SourceQuality "1"]
[WhiteTeam "Snina"]
[BlackTeam "Dubnica"]
[TimeControl "40/5400+30:1800+30"]

1. Nf3 {[%emt 0:00:00]} Nf6 {[%emt 0:00:00]} 2. c4 {[%emt 0:00:00]} e6 {[%emt 0:00:12]} 3. g3 {[%emt 0:04:03]} b6 {[%emt 0:00:47]} 4. Bg2 {[%emt 0:00:54]} Bb7 {[%emt 0:07:18]} 5. O-O {[%emt 0:00:09]} Be7 {[%emt 0:00:13]} 6. Nc3 {[%emt 0:02:31]} O-O {[%emt 0:00:28]} 7. Re1 {[%emt 0:03:10]} d5 {[%emt 0:00:36]} 8. cxd5 {[%emt 0:00:55]} exd5 {[%emt 0:00:05]} 9. d4 {[%emt 0:00:06]} Na6 {[%emt 0:00:48]} 10. Bf4 {[%emt 0:01:36]} c5 {[%emt 0:01:15]} 11. Rc1 {[%emt 0:01:05]} Ne4 {[%emt 0:00:59]} 12. Nd2 {[%emt 0:07:36]} g5 {[%emt 0:29:29]} 13. Be3 {[%emt 0:01:31]} f5 {[%emt 0:00:19]} 14. Ndxe4 {[%emt 0:05:43]} f4 {[%emt 0:13:44]} 15. Bd2 {[%emt 0:22:05]} cxd4 {[%emt 0:05:19]} 16. Qb3 {[%emt 0:01:14]} Kh8 {[%emt 0:04:25]} 17. Red1 {[%emt 0:02:18]} dxe4 {[%emt 0:06:08]} 18. Nxe4 {[%emt 0:02:50]} Nc5 {[%emt 0:04:02]} 19. Nxc5 {[%emt 0:11:43]} Bxg2 {[%emt 0:00:03]} 20. Kxg2 {[%emt 0:02:47]} bxc5 {[%emt 0:00:31]} 21. Qe6 {[%emt 0:06:33]} Rf6 {[%emt 0:03:06]} 22. Qe4 {[%emt 0:01:16]} Qf8 {[%emt 0:00:29]} 23. gxf4 {[%emt 0:05:59]} Bd6 {[%emt 0:01:49]} 24. e3 {[%emt 0:09:58]} gxf4 {[%emt 0:04:34]} 25. exf4 {[%emt 0:00:33]} Re8 {[%emt 0:01:06]} 26. Qd5 {[%emt 0:03:03]} Re2 {[%emt 0:01:27]} 27. Qf3 {[%emt 0:00:19]} Rxd2 {[%emt 0:01:30]} 28. Rxd2 {[%emt 0:00:06]} Bxf4 {[%emt 0:00:01]} 29. Qe2 {[%emt 0:03:07]} Qh6 {[%emt 0:00:01]} 30. Ra1 0-1

[Event "SVK Extraliga 2019-20"]
[Site "Slovakia"]
[Date "2020.03.01"]
[Round "8.6"]
[White "Matejovic, Juraj"]
[Black "Walterova, Ema"]
[Result "1-0"]
[ECO "C68"]
[WhiteElo "2216"]
[BlackElo "1807"]
[Annotator "ChessBase"]
[PlyCount "109"]
[EventDate "2019.10.19"]
[EventType "team-tourn"]
[EventCountry "SVK"]
[SourceTitle "playchess.com"]
[Source "ChessBase"]
[SourceQuality "1"]
[WhiteTeam "Dunajov"]
[BlackTeam "Bratislava"]
[TimeControl "40/5400+30:1800+30"]

1. e4 {[%emt 0:01:50]} e5 {[%emt 0:00:00]} 2. Nf3 {[%emt 0:00:09]} Nc6 {[%emt 0:00:00]} 3. Bb5 {[%emt 0:00:11]} a6 {[%emt 0:00:00]} 4. Bxc6 {[%emt 0:00:11]} dxc6 {[%emt 0:00:13]} 5. O-O {[%emt 0:00:29]} Qf6 {[%emt 0:01:01]} 6. d3 {[%emt 0:01:06]} Bg4 {[%emt 0:04:56]} 7. Nbd2 {[%emt 0:00:15]} Bc5 {[%emt 0:10:20]} 8. h3 Bxf3 {[%emt 0:10:56]} 9. Nxf3 {[%emt 0:00:59]} Ne7 {[%emt 0:04:02]} 10. Qe1 {[%emt 0:12:30]} Ng6 {[%emt 0:06:00]} 11. Qc3 {[%emt 0:01:36]} Bb6 {[%emt 0:03:11]} 12. a4 {[%emt 0:06:30]} a5 {[%emt 0:07:40]} 13. Ra3 {[%emt 0:06:26]} O-O {[%emt 0:04:55]} 14. Rb3 {[%emt 0:01:10]} Rfe8 {[%emt 0:04:55]} 15. Bg5 {[%emt 0:02:38]} Qd6 {[%emt 0:02:46]} 16. Be3 {[%emt 0:01:56]} Bxe3 {[%emt 0:02:48]} 17. fxe3 {[%emt 0:00:10]} b6 {[%emt 0:00:29]} 18. Qc4 {[%emt 0:04:59]} h6 {[%emt 0:02:00]} 19. Rc3 {[%emt 0:04:55]} c5 {[%emt 0:01:57]} 20. Ra3 {[%emt 0:00:25]} Rad8 {[%emt 0:01:15]} 21. Raa1 {[%emt 0:01:54]} Qe6 {[%emt 0:05:21]} 22. Nd2 {[%emt 0:04:11]} Nf8 {[%emt 0:03:44]} 23. Rf3 {[%emt 0:03:06]} f6 {[%emt 0:03:28]} 24. Qc3 {[%emt 0:03:00]} Rd7 {[%emt 0:03:08]} 25. Raf1 {[%emt 0:01:38]} Rf7 {[%emt 0:01:13]} 26. Nc4 {[%emt 0:01:03]} Nd7 {[%emt 0:01:27]} 27. Qe1 {[%emt 0:03:30]} Ref8 {[%emt 0:03:57]} 28. Qh4 {[%emt 0:02:35]} Nb8 {[%emt 0:01:48]} 29. Qh5 {[%emt 0:11:32]} Nc6 30. R1f2 Ne7 {[%emt 0:07:07]} 31. Qh4 {[%emt 0:05:18]} Nc8 {[%emt 0:03:23]} 32. b3 Nd6 33. Nd2 {[%emt 0:07:13]} f5 {[%emt 0:01:47]} 34. exf5 {[%emt 0:00:43]} Rxf5 {[%emt 0:00:22]} 35. Rxf5 {[%emt 0:02:37]} Nxf5 {[%emt 0:00:06]} 36. Qg4 {[%emt 0:02:42]} Qc8 {[%emt 0:01:11]} 37. Qc4+ {[%emt 0:01:12]} Kh8 {[%emt 0:00:18]} 38. Qe4 {[%emt 0:00:42]} Ne7 {[%emt 0:00:44]} 39. Rxf8+ Qxf8 40. Qxe5 {[%emt 0:01:05]} Qd8 {[%emt 0:00:42]} 41. Nf3 {[%emt 0:36:08]} Nc6 {[%emt 0:02:46]} 42. Qc3 {[%emt 0:00:00]} Nb4 {[%emt 0:05:54]} 43. Kf2 {[%emt 0:00:00]} Qe7 {[%emt 0:03:49]} 44. e4 {[%emt 0:00:00]} Qf7 45. g3 {[%emt 0:00:00]} Qe6 {[%emt 0:08:41]} 46. Kg2 {[%emt 0:00:00]} Kg8 {[%emt 0:06:18]} 47. h4 {[%emt 0:00:00]} Kf8 {[%emt 0:04:29]} 48. Qd2 {[%emt 0:00:00]} Qd6 {[%emt 0:00:51]} 49. h5 {[%emt 0:00:00]} Kg8 {[%emt 0:01:11]} 50. Nh4 {[%emt 0:00:00]} Qe5 {[%emt 0:01:12]} 51. c3 {[%emt 0:00:00]} Nc6 {[%emt 0:00:31]} 52. Nf5 {[%emt 0:00:00]} Nd8 {[%emt 0:00:34]} 53. Qf4 {[%emt 0:00:02]} Qxc3 {[%emt 0:00:31]} 54. Ne7+ {[%emt 0:00:19]} Kh7 {[%emt 0:00:28]} 55. Qf5+ {[%emt 0:00:12]} 1-0

[Event "SVK Extraliga 2019-20"]
[Site "Slovakia"]
[Date "2020.03.01"]
[Round "8.6"]
[White "Tropp, Lukas"]
[Black "Mydlarik, Martin"]
[Result "1/2-1/2"]
[ECO "B01"]
[WhiteElo "2121"]
[BlackElo "2089"]
[Annotator "ChessBase"]
[PlyCount "135"]
[EventDate "2019.10.19"]
[EventType "team-tourn"]
[EventCountry "SVK"]
[SourceTitle "playchess.com"]
[Source "ChessBase"]
[SourceQuality "1"]
[WhiteTeam "Kosice"]
[BlackTeam "Modra"]
[TimeControl "40/5400+30:1800+30"]

1. e4 {[%emt 0:00:00]} d5 {[%emt 0:00:03]} 2. exd5 {[%emt 0:00:08]} Qxd5 {[%emt 0:00:02]} 3. Nc3 {[%emt 0:00:08]} Qa5 {[%emt 0:00:08]} 4. d4 {[%emt 0:02:40]} Nf6 {[%emt 0:00:09]} 5. Nf3 {[%emt 0:00:26]} Bf5 {[%emt 0:01:34]} 6. Ne5 {[%emt 0:11:51]} c6 {[%emt 0:00:00]} 7. g4 {[%emt 0:18:04]} Be4 {[%emt 0:04:16]} 8. f3 {[%emt 0:00:57]} Bd5 {[%emt 0:00:02]} 9. Bd2 {[%emt 0:13:32]} Qb6 {[%emt 0:02:46]} 10. Nxd5 {[%emt 0:04:20]} cxd5 {[%emt 0:00:38]} 11. c3 {[%emt 0:01:41]} e6 {[%emt 0:04:08]} 12. Qb3 {[%emt 0:06:18]} Qxb3 {[%emt 0:00:49]} 13. axb3 {[%emt 0:00:07]} Bd6 {[%emt 0:00:24]} 14. h3 {[%emt 0:03:35]} Nfd7 {[%emt 0:04:01]} 15. f4 {[%emt 0:01:46]} O-O {[%emt 0:06:42]} 16. Bg2 {[%emt 0:02:16]} Bxe5 {[%emt 0:15:26]} 17. fxe5 {[%emt 0:03:29]} Nc6 {[%emt 0:00:52]} 18. b4 {[%emt 0:04:57]} b5 {[%emt 0:07:25]} 19. Ke2 {[%emt 0:04:08]} a5 {[%emt 0:07:44]} 20. bxa5 {[%emt 0:02:36]} Nxa5 {[%emt 0:01:29]} 21. Rhb1 {[%emt 0:00:18]} Nb3 {[%emt 0:01:01]} 22. Ra3 {[%emt 0:00:17]} Nxd2 {[%emt 0:03:02]} 23. Kxd2 {[%emt 0:00:04]} Nb6 {[%emt 0:00:14]} 24. Kd3 {[%emt 0:07:46]} Nc4 {[%emt 0:05:12]} 25. Rb3 {[%emt 0:00:07]} Ra5 {[%emt 0:00:49]} 26. Rb4 {[%emt 0:01:13]} f6 {[%emt 0:01:00]} 27. b3 {[%emt 0:00:57]} Ra2 {[%emt 0:01:07]} 28. Bxd5 {[%emt 0:03:23]} exd5 {[%emt 0:02:08]} 29. bxc4 {[%emt 0:00:11]} bxc4+ {[%emt 0:03:00]} 30. Ke3 {[%emt 0:00:05]} Rc2 {[%emt 0:14:00]} 31. Rb5 {[%emt 0:02:59]} Rxc3+ {[%emt 0:00:15]} 32. Kf4 {[%emt 0:00:46]} Rd3 {[%emt 0:05:23]} 33. Rxd5 {[%emt 0:01:14]} fxe5+ {[%emt 0:00:12]} 34. Kxe5 {[%emt 0:00:08]} Re3+ {[%emt 0:01:45]} 35. Kd6 {[%emt 0:00:07]} c3 {[%emt 0:00:35]} 36. h4 {[%emt 0:03:13]} Rd8+ {[%emt 0:02:27]} 37. Kc5 {[%emt 0:01:07]} Rc8+ {[%emt 0:00:16]} 38. Kd6 {[%emt 0:00:14]} c2 {[%emt 0:01:19]} 39. Rc1 {[%emt 0:00:01]} Rd3 {[%emt 0:00:20]} 40. Kd7 {[%emt 0:01:58]} Rcc3 {[%emt 0:03:19]} 41. Ke6 {[%emt 0:03:27]} h6 {[%emt 0:00:08]} 42. Rc5 {[%emt 0:02:52]} Rd1 {[%emt 0:13:01]} 43. Rxc3 {[%emt 0:10:14]} Rxc1 {[%emt 0:00:07]} 44. Rc8+ {[%emt 0:00:08]} Kh7 {[%emt 0:00:04]} 45. Kd5 {[%emt 0:00:05]} Kg6 {[%emt 0:00:17]} 46. Rc7 {[%emt 0:01:58]} h5 {[%emt 0:01:27]} 47. Rc6+ {[%emt 0:00:54]} Kf7 {[%emt 0:00:45]} 48. gxh5 {[%emt 0:01:59]} Ke7 {[%emt 0:00:59]} 49. Rc7+ {[%emt 0:08:29]} Kf6 {[%emt 0:01:23]} 50. Rc3 {[%emt 0:01:03]} Kf5 {[%emt 0:03:33]} 51. Rc7 {[%emt 0:02:08]} Kf6 {[%emt 0:00:24]} 52. Rc5 {[%emt 0:00:24]} Ke7 {[%emt 0:00:25]} 53. Rc3 {[%emt 0:00:29]} Kd7 {[%emt 0:00:47]} 54. Kc5 {[%emt 0:00:42]} Ra1 {[%emt 0:02:13]} 55. Rxc2 {[%emt 0:00:12]} Ra5+ {[%emt 0:00:05]} 56. Kc4 {[%emt 0:00:09]} Rxh5 {[%emt 0:00:04]} 57. Rg2 {[%emt 0:00:21]} Rxh4 {[%emt 0:00:21]} 58. Rxg7+ {[%emt 0:00:07]} Kd6 {[%emt 0:00:10]} 59. Rg6+ {[%emt 0:00:02]} Kd7 {[%emt 0:00:09]} 60. Kc5 {[%emt 0:00:08]} Rh1 {[%emt 0:00:12]} 61. Rg7+ {[%emt 0:00:26]} Kd8 {[%emt 0:02:38]} 62. d5 {[%emt 0:03:15]} Rh6 {[%emt 0:01:30]} 63. Rb7 {[%emt 0:00:05]} Kc8 {[%emt 0:01:46]} 64. Ra7 {[%emt 0:00:14]} Kd8 {[%emt 0:00:43]} 65. Rg7 {[%emt 0:00:17]} Kc8 {[%emt 0:00:24]} 66. d6 {[%emt 0:01:36]} Rh1 {[%emt 0:00:10]} 67. d7+ {[%emt 0:01:02]} Kd8 {[%emt 0:00:08]} 68. Kd4 1/2-1/2